bitfinex/quotes_SOLUSD_20241110
["timestamp","ask_amount","ask_price","bid_price","bid_amount"]
[1731264200925,33.67647455,213.99,213.92,33.67647455]
[1731264201130,33.67647455,214.0,213.93,33.67647455]
[1731264201437,33.67647455,213.98,213.91,33.67647455]
[1731264201628,33.67647455,213.97,213.9,49.28067455]
[1731264201828,33.67647455,213.99,213.91,33.67647455]
[1731264202449,33.67647455,214.0,213.93,33.67647455]
[1731264202627,33.67647455,213.98,213.92,33.67647455]
[1731264202829,33.67647455,213.95,213.87,33.67647455]
[1731264203031,33.67647455,213.94,213.86,33.67647455]
[1731264203337,33.67647455,213.95,213.88,33.67647455]
[1731264204944,33.67647455,213.97,213.9,33.67647455]
[1731264205141,33.67647455,213.98,213.9,33.67647455]
[1731264205542,33.67647455,213.97,213.9,33.67647455]
[1731264205745,33.67647455,213.94,213.86,33.67647455]
[1731264205938,33.67647455,213.94,213.87,33.67647455]
[1731264206434,33.67647455,213.96,213.89,33.67647455]
[1731264206635,33.67647455,213.95,213.88,33.67647455]
[1731264208756,33.67647455,213.94,213.88,23.776884]
[1731264208952,33.67647455,213.91,213.85,15.6042]
[1731264209259,33.67647455,213.87,213.8,48.83877455]
[1731264209554,0.12549,213.93,213.8,48.83877455]
[1731264209555,33.67647455,213.85,213.8,15.1623]
[1731264209763,33.67647455,213.85,213.78,33.67647455]
[1731264210143,33.67647455,213.84,213.76,33.67647455]
[1731264210450,33.67647455,213.84,213.77,33.67647455]
[1731264211258,33.67647455,213.85,213.78,33.67647455]
[1731264211954,33.67647455,213.86,213.79,33.67647455]
[1731264212143,33.67647455,213.87,213.8,33.67647455]
[1731264212459,33.67647455,213.88,213.81,33.67647455]
[1731264212638,33.67647455,213.9,213.84,33.67647455]
[1731264212958,33.67647455,213.9,213.76,23.776884]
[1731264212959,33.67647455,213.93,213.87,33.67647455]
[1731264213253,33.67647455,213.92,213.85,33.67647455]
[1731264213434,6.399,213.96,213.8,0.1]
[1731264213752,33.67647455,213.93,213.86,33.67647455]
[1731264213946,33.67647455,213.92,213.86,33.67647455]
[1731264214148,33.67647455,213.93,213.86,33.67647455]
[1731264214453,33.58767498,213.92,213.85,33.67647455]
[1731264214635,33.67647455,213.93,213.86,57.45335855]
[1731264214838,33.67647455,213.94,213.87,33.67647455]
[1731264216251,11.26981014,213.96,213.78,30.23793222]
[1731264216252,33.67647455,213.91,213.84,33.67647455]
[1731264216449,33.67647455,213.93,213.86,33.67647455]
[1731264217560,33.67647455,213.92,213.85,33.67647455]
[1731264217858,33.67647455,213.88,213.81,33.67647455]
[1731264218061,33.67647455,213.88,213.76,5.52296133]
[1731264218062,33.67647455,213.9,213.83,33.67647455]
[1731264218645,0.1,213.91,213.85,33.67647455]
[1731264219161,33.77647455,213.91,213.84,33.67647455]
[1731264219347,0.1,213.91,213.85,33.67647455]
[1731264219762,0.1,213.91,213.86,33.67647455]
[1731264219946,33.67647455,213.92,213.86,33.67647455]
[1731264220353,33.67647455,213.94,213.88,33.67647455]
[1731264220746,38.54728469,213.96,213.89,33.67647455]
[1731264220948,33.67647455,213.95,213.88,57.45335855]
[1731264221343,33.67647455,213.96,213.9,33.67647455]
[1731264221667,4.8665258,213.99,213.93,33.67647455]
[1731264221841,33.67647455,214.0,213.93,33.67647455]
[1731264222045,33.67647455,214.01,213.94,33.67647455]
[1731264222252,33.67647455,214.0,213.94,33.67647455]
[1731264222453,33.67647455,214.0,213.93,33.67647455]
[1731264222858,33.67647455,214.0,213.94,33.67647455]
[1731264223163,33.67647455,214.03,213.96,33.67647455]
[1731264223465,61.63647455,214.1,214.02,33.67647455]
[1731264223757,61.63647455,214.1,214.04,33.67647455]
[1731264223960,61.63647455,214.07,214.0,33.67647455]
[1731264224142,61.63647455,214.07,213.96,21.56566133]
[1731264224143,0.12549,214.06,213.96,16.1427]
[1731264224347,0.12549,214.06,213.89,16.1427]
[1731264224547,0.12549,214.06,213.9,23.776884]
[1731264225159,0.12549,214.07,213.9,23.776884]
[1731264225468,33.67647455,214.01,213.94,33.67647455]
[1731264225644,33.67647455,214.04,213.98,33.67647455]
[1731264225845,33.67647455,214.05,213.98,33.67647455]
[1731264226056,33.67647455,214.04,213.97,33.67647455]
[1731264226562,33.67647455,214.0,213.93,33.67647455]
[1731264226755,33.67647455,213.99,213.92,33.67647455]
[1731264226957,0.22549,214.05,213.89,16.1427]
[1731264226958,33.67647455,214.0,213.93,33.67647455]
[1731264227158,33.67647455,213.99,213.92,33.67647455]
[1731264228645,33.67647455,213.95,213.89,16.1427]
[1731264228871,33.67647455,213.95,213.69,23.0668577]
[1731264228872,33.67647455,213.91,213.84,49.64287455]
[1731264229047,33.67647455,213.93,213.86,33.67647455]
[1731264230371,34.63857385,214.01,213.79,49.64287455]
[1731264230372,33.67647455,213.87,213.79,49.64287455]
[1731264230668,33.67647455,213.91,213.83,33.67647455]
[1731264231058,0.12549,213.93,213.83,33.67647455]
[1731264231059,61.63647455,213.9,213.83,33.67647455]
[1731264231364,27.96,213.9,213.83,33.67647455]
[1731264231565,27.96,213.9,213.79,15.9664]
[1731264231566,33.67647455,213.89,213.81,33.67647455]
[1731264231761,33.67647455,213.9,213.83,33.67647455]
[1731264231955,33.67647455,213.92,213.85,33.67647455]
[1731264232860,33.67647455,213.93,213.86,33.67647455]
[1731264233258,33.67647455,213.92,213.85,33.67647455]
[1731264233853,33.67647455,213.94,213.86,33.67647455]
[1731264234055,33.67647455,213.97,213.9,33.67647455]
[1731264234255,61.63647455,213.97,213.9,33.67647455]
[1731264234456,33.67647455,213.96,213.89,33.67647455]
[1731264234661,33.67647455,213.94,213.87,23.776884]
[1731264234952,33.67647455,213.96,213.89,33.67647455]
[1731264235152,33.67647455,213.95,213.88,33.67647455]
[1731264235549,33.67647455,213.96,213.89,33.67647455]
[1731264235751,33.67647455,213.96,213.88,33.67647455]
[1731264235975,33.67647455,213.97,213.9,33.67647455]
[1731264236269,33.67647455,213.98,213.9,33.67647455]
[1731264236566,33.67647455,213.97,213.91,23.776884]
[1731264236767,33.67647455,213.96,213.88,33.67647455]
[1731264236969,33.67647455,213.9,213.82,33.67647455]
[1731264237155,33.67647455,213.9,213.74,0.1]
[1731264237156,33.67647455,213.88,213.81,33.67647455]
[1731264237355,33.67647455,213.86,213.79,49.64287455]
[1731264237557,33.67647455,213.87,213.8,33.67647455]
[1731264238061,33.67647455,213.86,213.79,49.64287455]
[1731264238278,33.67647455,213.85,213.79,15.9664]
[1731264238468,33.67647455,213.84,213.77,39.93957455]
[1731264238677,33.67647455,213.89,213.81,33.67647455]
[1731264238852,33.67647455,213.9,213.83,33.67647455]
[1731264239055,33.67647455,213.91,213.84,33.67647455]
[1731264239371,27.96,213.89,213.77,6.2631]
[1731264240375,33.67647455,213.86,213.78,33.67647455]
[1731264240871,0.12549,213.93,213.77,6.2631]
[1731264240872,33.67647455,213.9,213.82,33.67647455]
[1731264241168,33.67647455,213.89,213.81,33.67647455]
[1731264241358,61.63647455,213.9,213.82,33.67647455]
[1731264241761,33.67647455,213.89,213.82,33.67647455]
[1731264242070,61.63647455,213.9,213.82,33.67647455]
[1731264242266,61.63647455,213.9,213.83,33.67647455]
[1731264242458,61.63647455,213.9,213.82,33.67647455]
[1731264242658,33.67647455,213.86,213.8,23.776884]
[1731264242850,33.67647455,213.85,213.78,57.45335855]
[1731264243255,33.67647455,213.86,213.79,33.67647455]
[1731264243556,33.67647455,213.87,213.79,33.67647455]
[1731264243860,27.96,213.88,213.82,33.67647455]
[1731264244670,33.67647455,213.91,213.84,33.67647455]
[1731264245066,33.67647455,213.9,213.83,33.67647455]
[1731264245263,33.67647455,213.88,213.81,33.67647455]
[1731264245451,33.67647455,213.89,213.82,33.67647455]
[1731264246152,33.67647455,213.87,213.79,33.67647455]
[1731264246358,61.63647455,213.88,213.8,33.67647455]
[1731264246554,61.63647455,213.88,213.81,33.67647455]
[1731264246860,61.63647455,213.88,213.8,33.67647455]
[1731264247059,61.63647455,213.88,213.78,23.776884]
[1731264247060,27.96,213.88,213.81,33.67647455]
[1731264247261,61.63647455,213.9,213.83,33.67647455]
[1731264247464,33.67647455,213.89,213.82,33.67647455]
[1731264247876,61.63647455,213.89,213.81,33.67647455]
[1731264248171,33.67647455,213.86,213.78,57.45335855]
[1731264248376,61.63647455,213.87,213.79,33.67647455]
[1731264248679,27.96,213.87,213.81,33.67647455]
[1731264249473,61.63647455,213.87,213.8,33.67647455]
[1731264249671,4.85253869,213.88,213.82,33.67647455]
[1731264249872,61.63647455,213.9,213.82,33.67647455]
[1731264250266,27.96,213.91,213.85,33.67647455]
[1731264250673,61.63647455,213.91,213.78,23.776884]
[1731264250885,27.96,213.91,213.84,33.67647455]
[1731264251380,27.96,213.91,213.85,33.67647455]
[1731264251572,33.67647455,213.93,213.85,33.67647455]
[1731264251763,6.3967,213.98,213.84,33.67647455]
[1731264251764,61.63647455,213.92,213.84,33.67647455]
[1731264251965,6.3967,213.98,213.78,23.776884]
[1731264251966,33.67647455,213.87,213.79,33.67647455]
[1731264252163,33.67647455,213.86,213.79,33.67647455]
[1731264252461,33.67647455,213.89,213.78,23.776884]
[1731264252666,27.96,213.91,213.78,29.62101756]
[1731264252965,61.63647455,213.87,213.8,33.67647455]
[1731264253170,27.96,213.86,213.77,39.93957455]
[1731264253472,61.63647455,213.83,213.75,33.67647455]
[1731264253659,33.67647455,213.82,213.75,33.67647455]
[1731264254361,61.63647455,213.82,213.74,33.67647455]
[1731264254566,33.67647455,213.8,213.73,48.92767455]
[1731264254864,33.67647455,213.8,213.73,15.2512]
[1731264255059,33.67647455,213.8,213.74,33.67647455]
[1731264255273,61.63647455,213.81,213.74,33.67647455]
[1731264255590,61.63647455,213.8,213.73,48.92767455]
[1731264255878,33.67647455,213.77,213.7,33.67647455]
[1731264256078,33.67647455,213.78,213.7,33.67647455]
[1731264256462,33.67647455,213.77,213.7,33.67647455]
[1731264256788,33.67647455,213.76,213.68,49.22927455]
[1731264256961,33.67647455,213.76,213.68,33.67647455]
[1731264257166,33.67647455,213.76,213.69,33.67647455]
[1731264257681,33.67647455,213.7,213.63,33.67647455]
[1731264257875,33.67647455,213.69,213.62,48.97467455]
[1731264258259,33.67647455,213.72,213.65,33.67647455]
[1731264258673,15.2538,213.78,213.62,15.2982]
[1731264258674,33.67647455,213.75,213.68,33.67647455]
[1731264259068,33.67647455,213.77,213.69,33.67647455]
[1731264259681,33.67647455,213.77,213.7,33.67647455]
[1731264259883,33.67647455,213.79,213.72,33.67647455]
[1731264260074,33.67647455,213.8,213.73,33.67647455]
[1731264260467,33.67647455,213.79,213.72,33.67647455]
[1731264260666,33.67647455,213.79,213.71,33.67647455]
[1731264261370,33.67647455,213.8,213.73,33.67647455]
[1731264261568,33.67647455,213.81,213.74,33.67647455]
[1731264261774,33.67647455,213.82,213.75,33.67647455]
[1731264262080,33.67647455,213.8,213.73,33.67647455]
[1731264262475,38.53190845,213.82,213.74,33.67647455]
[1731264263566,33.67647455,213.8,213.73,33.67647455]
[1731264264178,33.67647455,213.8,213.72,33.67647455]
[1731264264488,33.67647455,213.78,213.71,33.67647455]
[1731264264681,4.8554339,213.82,213.62,49.07467455]
[1731264264682,33.67647455,213.77,213.69,33.67647455]
[1731264264884,33.67647455,213.78,213.7,33.67647455]
[1731264265083,33.67647455,213.79,213.72,33.67647455]
[1731264265468,33.67647455,213.78,213.71,33.67647455]
[1731264265676,27.96,213.77,213.71,33.67647455]
[1731264266868,27.96,213.79,213.63,6.36042602]
[1731264267068,28.06,213.79,213.73,33.67647455]
[1731264267679,0.1,213.79,213.75,33.67647455]
[1731264267883,32.8154339,213.82,213.76,33.67647455]
[1731264268073,33.67647455,213.84,213.77,33.67647455]
[1731264268074,27.96,213.83,213.77,33.67647455]
[1731264268269,27.96,213.83,213.78,33.67647455]
[1731264268475,27.96,213.83,213.76,33.67647455]
[1731264269393,27.96,213.84,213.78,33.67647455]
[1731264269690,27.96,213.88,213.83,33.67647455]
[1731264269893,33.67647455,213.91,213.84,33.67647455]
[1731264270085,40.16197455,213.92,213.85,33.67647455]
[1731264270388,33.67647455,213.91,213.83,33.67647455]
[1731264270597,61.63647455,213.91,213.83,33.67647455]
[1731264270771,27.96,213.91,213.84,33.67647455]
[1731264270977,33.67647455,213.9,213.83,33.67647455]
[1731264271182,33.67647455,213.89,213.82,33.67647455]
[1731264271370,61.63647455,213.86,213.79,33.67647455]
[1731264271570,33.67647455,213.85,213.78,33.67647455]
[1731264271869,27.96,213.86,213.8,33.67647455]
[1731264272069,61.63647455,213.86,213.79,33.67647455]
[1731264272474,27.96,213.87,213.8,33.67647455]
[1731264272694,61.63647455,213.87,213.8,33.67647455]
[1731264272889,33.67647455,213.86,213.79,33.67647455]
[1731264273076,61.63647455,213.87,213.79,33.67647455]
[1731264273284,33.67647455,213.8,213.66,21.9069]
[1731264273481,33.67647455,213.75,213.66,55.58337455]
[1731264273795,61.63647455,213.75,213.68,33.67647455]
[1731264274172,33.67647455,213.74,213.66,49.11867455]
[1731264274385,61.63647455,213.74,213.67,33.67647455]
[1731264274594,61.63647455,213.74,213.66,49.11867455]
[1731264274776,33.67647455,213.73,213.66,15.4422]
[1731264275094,33.67647455,213.73,213.65,33.67647455]
[1731264275595,61.63647455,213.74,213.67,33.67647455]
[1731264276180,33.67647455,213.73,213.65,33.67647455]
[1731264276569,33.67647455,213.72,213.64,33.67647455]
[1731264276976,33.67647455,213.74,213.67,33.67647455]
[1731264277580,33.67647455,213.74,213.62,6.4647]
[1731264277581,61.63647455,213.74,213.66,33.67647455]
[1731264277783,33.67647455,213.73,213.66,33.67647455]
[1731264278385,33.67647455,213.72,213.64,33.67647455]
[1731264278692,33.67647455,213.73,213.65,33.67647455]
[1731264278998,33.67647455,213.73,213.66,33.67647455]
[1731264279198,33.67647455,213.74,213.66,33.67647455]
[1731264279374,33.67647455,213.7,213.63,33.67647455]
[1731264279873,33.67647455,213.69,213.62,33.67647455]
[1731264280192,12.95716709,213.81,213.6,23.776884]
[1731264280193,27.96,213.8,213.67,33.67647455]
[1731264280398,27.96,213.8,213.6,23.776884]
[1731264280399,61.63647455,213.71,213.64,33.67647455]
[1731264280695,28.08549,213.7,213.54,21.9069]
[1731264280893,32.91542848,213.7,213.54,21.9069]
[1731264281376,33.67647455,213.62,213.54,55.58337455]
[1731264281795,33.67647455,213.61,213.54,33.67647455]
[1731264282001,33.67647455,213.57,213.5,33.67647455]
[1731264282495,33.67647455,213.58,213.5,33.67647455]
[1731264283098,33.67647455,213.57,213.5,33.67647455]
[1731264283287,33.67647455,213.58,213.5,33.67647455]
[1731264284180,33.67647455,213.64,213.57,33.67647455]
[1731264284581,33.67647455,213.64,213.56,33.67647455]
[1731264286581,34.5045,213.68,213.55,33.67647455]
[1731264286582,33.67647455,213.62,213.55,33.67647455]
[1731264286796,33.67647455,213.56,213.49,49.11867455]
[1731264286997,33.67647455,213.55,213.49,15.4422]
[1731264287392,33.67647455,213.55,213.48,6.4647]
[1731264287582,33.67647455,213.55,213.47,33.67647455]
[1731264288192,33.67647455,213.55,213.48,33.67647455]
[1731264288699,33.67647455,213.54,213.47,33.67647455]
[1731264288883,33.67647455,213.52,213.44,15.0973]
[1731264289088,33.67647455,213.52,213.45,33.67647455]
[1731264289902,33.67647455,213.51,213.44,48.77377455]
[1731264290409,33.67647455,213.5,213.43,33.67647455]
[1731264291399,33.67647455,213.52,213.45,33.67647455]
[1731264291608,33.67647455,213.53,213.46,33.67647455]
[1731264292180,33.67647455,213.61,213.52,33.67647455]
[1731264292398,33.67647455,213.6,213.53,33.67647455]
[1731264292705,33.67647455,213.59,213.52,33.67647455]
[1731264293393,33.67647455,213.57,213.5,33.67647455]
[1731264293985,33.67647455,213.58,213.51,33.67647455]
[1731264294197,33.67647455,213.6,213.53,33.67647455]
[1731264294510,33.67647455,213.61,213.53,33.67647455]
[1731264294885,33.67647455,213.59,213.52,33.67647455]
[1731264295398,33.67647455,213.58,213.51,33.67647455]
[1731264295601,33.67647455,213.57,213.5,33.67647455]
[1731264295781,33.67647455,213.58,213.51,33.67647455]
[1731264296105,27.96,213.58,213.51,33.67647455]
[1731264296306,61.63647455,213.58,213.44,20.0]
[1731264296503,33.67647455,213.6,213.53,33.67647455]
[1731264297501,33.67647455,213.59,213.52,33.67647455]
[1731264298688,33.67647455,213.6,213.52,33.67647455]
[1731264299006,33.67647455,213.6,213.53,33.67647455]
[1731264299206,33.67647455,213.57,213.44,26.70647681]
[1731264299407,33.67647455,213.54,213.46,20.0]
[1731264299704,27.96,213.59,213.46,33.67647455]
[1731264299705,33.67647455,213.53,213.46,33.67647455]
[1731264299882,33.67647455,213.54,213.47,33.67647455]
[1731264300387,4.82703513,213.61,213.44,33.67647455]
[1731264300388,33.67647455,213.52,213.44,33.67647455]
[1731264300693,33.67647455,213.53,213.46,33.67647455]
[1731264301104,33.67647455,213.53,213.39,15.0973]
[1731264301292,33.67647455,213.52,213.44,33.67647455]
[1731264301608,33.67647455,213.51,213.44,33.67647455]
[1731264301808,61.63647455,213.51,213.44,33.67647455]
[1731264301991,33.67647455,213.5,213.43,38.36177455]
[1731264303104,0.2,213.57,213.43,38.36177455]
[1731264303105,61.63647455,213.49,213.43,4.6853]
[1731264303313,33.67647455,213.46,213.43,4.6853]
[1731264303483,33.67647455,213.47,213.43,4.6853]
[1731264304005,61.63647455,213.46,213.43,16.3987]
[1731264304209,61.63647455,213.44,213.43,16.3987]
[1731264304705,27.96,213.44,213.43,16.3987]
[1731264304889,33.67647455,213.46,213.43,11.7134]
[1731264305094,61.63647455,213.48,213.43,11.7134]
[1731264305289,33.67647455,213.46,213.43,11.7134]
[1731264305516,33.67647455,213.44,213.43,11.7134]
[1731264307300,33.67647455,213.44,213.37,33.67647455]
[1731264307485,0.1,213.45,213.35,15.7011]
[1731264307807,33.67647455,213.52,213.44,33.67647455]
[1731264308010,6.2584,213.59,213.42,43.776884]
[1731264308397,11.09103749,213.59,213.44,43.776884]
[1731264308705,27.96,213.63,213.47,0.1]
[1731264308912,27.96,213.63,213.46,43.776884]
[1731264309114,4.8314368,213.65,213.48,0.1]
[1731264309302,4.8314368,213.65,213.47,0.1]
[1731264309303,39.93487455,213.7,213.63,33.67647455]
[1731264309500,33.67647455,213.71,213.64,33.67647455]
[1731264309807,33.67647455,213.75,213.57,0.2]
[1731264309993,0.1,213.76,213.56,43.776884]
[1731264310192,6.23831083,213.81,213.56,43.776884]
[1731264310193,4.83353015,213.74,213.56,43.776884]
[1731264310491,27.96,213.81,213.61,0.1]
[1731264310704,28.06,213.81,213.61,0.2]
[1731264310923,4.83291833,213.8,213.64,20.0]
[1731264311207,33.67647455,213.82,213.75,33.67647455]
[1731264311411,33.67647455,213.78,213.71,33.67647455]
[1731264311611,32.79551977,213.82,213.66,43.776884]
[1731264311797,4.83551977,213.82,213.67,0.1]
[1731264311994,0.1,213.86,213.69,43.776884]
[1731264312196,4.8377738,213.86,213.69,43.976884]
[1731264312397,33.77647455,213.95,213.69,43.976884]
[1731264312619,0.2,213.92,213.69,43.776884]
[1731264312787,27.96,213.88,213.73,33.67647455]
[1731264312989,27.96,213.88,213.82,33.67647455]
[1731264314112,33.67647455,213.93,213.86,33.67647455]
[1731264314409,61.63647455,213.94,213.86,33.67647455]
[1731264314603,32.81582874,213.93,213.86,33.67647455]
[1731264315013,32.81582874,213.93,213.73,40.48295136]
[1731264315014,4.85582874,213.93,213.9,33.67647455]
[1731264315315,33.67647455,214.02,213.92,33.67647455]
[1731264315492,33.67647455,213.99,213.92,33.67647455]
[1731264315692,0.12549,214.0,213.86,15.78]
[1731264316091,28.08549,214.0,213.86,15.78]
[1731264316313,28.28549,214.0,213.82,6.2156]
[1731264316513,27.96,214.0,213.83,43.776884]
[1731264317017,27.96,214.0,213.95,33.67647455]
[1731264317305,27.96,214.04,213.97,33.67647455]
[1731264317807,38.52821779,214.04,213.97,33.67647455]
[1731264318196,4.85174324,214.04,213.98,33.67647455]
[1731264318509,32.81174324,214.04,213.95,33.67647455]
[1731264318713,33.67647455,214.0,213.92,33.67647455]
[1731264318905,33.67647455,213.97,213.9,33.67647455]
[1731264319292,33.67647455,213.97,213.84,33.67647455]
[1731264319504,0.32549,213.99,213.82,6.2156]
[1731264319704,33.67647455,213.91,213.84,33.67647455]
[1731264319906,27.96,213.93,213.87,33.67647455]
[1731264320116,27.96,213.96,213.89,33.67647455]
[1731264320414,27.96,213.96,213.78,16.6732]
[1731264320415,27.96,213.96,213.8,0.1]
[1731264320621,4.85174324,214.04,213.81,0.1]
[1731264320831,4.85174324,214.04,213.84,0.1]
[1731264320999,27.96,214.03,213.84,0.1]
[1731264321198,33.67647455,213.97,213.89,33.67647455]
[1731264321416,33.67647455,213.94,213.87,33.67647455]
[1731264322001,0.1,214.0,213.78,16.4732]
[1731264322002,61.63647455,213.92,213.84,33.67647455]
[1731264322619,33.67647455,213.9,213.82,33.67647455]
[1731264322801,33.67647455,213.9,213.78,16.4732]
[1731264322802,33.67647455,213.9,213.83,33.67647455]
[1731264323001,33.67647455,213.88,213.81,33.67647455]
[1731264323305,33.67647455,213.85,213.77,33.67647455]
[1731264323612,27.96,213.91,213.75,6.1136]
[1731264324307,6.6535,213.98,213.77,0.1]
[1731264324505,27.96,214.01,213.78,23.776884]
[1731264324709,33.67647455,213.97,213.9,33.67647455]
[1731264325021,33.67647455,213.98,213.91,33.67647455]
[1731264325320,33.67647455,213.99,213.91,33.67647455]
[1731264325529,33.67647455,213.98,213.91,33.67647455]
[1731264325714,27.96,213.97,213.91,33.67647455]
[1731264326221,27.96,213.97,213.9,33.67647455]
[1731264326802,27.96,213.97,213.79,6.70647681]
[1731264326803,61.63647455,213.93,213.73,33.67647455]
[1731264327006,33.67647455,213.92,213.85,33.67647455]
[1731264327216,0.12549,213.96,213.71,6.70647681]
[1731264327217,27.96,213.91,213.71,6.70647681]
[1731264327517,27.96,213.89,213.83,33.67647455]
[1731264327720,61.63647455,213.89,213.71,0.1]
[1731264327918,33.67647455,213.94,213.86,33.67647455]
[1731264328125,4.85155141,213.93,213.89,33.67647455]
[1731264328320,33.67647455,213.97,213.89,33.67647455]
[1731264328831,33.67647455,214.02,213.95,33.67647455]
[1731264329028,27.96,214.03,213.97,33.67647455]
[1731264329204,27.96,214.03,213.88,6.643]
[1731264329205,33.67647455,214.02,213.95,33.67647455]
[1731264329511,27.96,214.03,213.97,33.67647455]
[1731264329714,33.67647455,214.02,213.95,33.67647455]
[1731264330215,61.63647455,214.01,213.94,33.67647455]
[1731264330420,27.96,214.01,213.94,33.67647455]
[1731264330729,27.96,214.01,213.88,6.643]
[1731264330730,33.67647455,213.99,213.92,33.67647455]
[1731264330913,33.67647455,213.97,213.9,33.67647455]
[1731264331603,27.96,214.0,213.92,33.67647455]
[1731264331604,61.63647455,214.0,213.92,33.67647455]
[1731264331801,4.85032537,214.04,213.88,6.643]
[1731264331802,4.85032537,214.04,213.94,33.67647455]
[1731264332025,33.67647455,214.01,213.94,33.67647455]
[1731264332521,27.96,214.01,213.96,33.67647455]
[1731264333123,33.67647455,214.02,213.95,33.67647455]
[1731264333430,6.355,214.11,213.99,33.67647455]
[1731264333431,33.67647455,214.06,213.99,33.67647455]
[1731264333602,33.67647455,214.1,214.03,33.67647455]
[1731264333803,15.3889,214.17,213.98,15.5706]
[1731264334018,33.67647455,214.08,213.99,23.776884]
[1731264334198,33.67647455,214.08,213.98,15.5706]
[1731264334698,33.67647455,214.05,213.98,49.24707455]
[1731264335113,33.67647455,214.07,213.99,33.67647455]
[1731264335322,33.67647455,214.06,213.99,33.67647455]
[1731264335618,33.67647455,214.04,213.98,15.5706]
[1731264336624,33.67647455,214.08,214.0,33.67647455]
[1731264337121,33.67647455,214.07,214.0,33.67647455]
[1731264337713,33.67647455,214.09,214.02,33.67647455]
[1731264337913,33.67647455,214.08,214.01,33.67647455]
[1731264338112,33.67647455,214.09,214.02,33.67647455]
[1731264338325,27.96,214.15,214.01,33.67647455]
[1731264338326,33.67647455,214.08,214.01,33.67647455]
[1731264338511,27.96,214.15,213.98,15.5706]
[1731264338512,33.67647455,214.06,213.99,33.67647455]
[1731264339217,33.67647455,214.03,213.98,15.5706]
[1731264339702,33.67647455,214.05,213.98,49.24707455]
[1731264339904,0.1,214.08,213.89,15.5706]
[1731264340115,28.08549,214.05,213.89,15.5706]
[1731264340322,28.08549,214.03,213.89,15.5706]
[1731264341017,33.67647455,214.01,213.94,33.67647455]
[1731264341211,33.67647455,214.01,213.89,15.5706]
[1731264341212,33.67647455,214.02,213.95,33.67647455]
[1731264341418,27.96,214.06,213.89,15.5706]
[1731264341419,33.67647455,214.03,213.96,33.67647455]
[1731264341608,33.67647455,214.03,213.89,15.5706]
[1731264341609,33.67647455,213.98,213.89,15.5706]
[1731264341812,33.67647455,213.99,213.93,33.67647455]
[1731264342206,27.96,214.03,213.89,15.5706]
[1731264342207,33.67647455,214.02,213.95,33.67647455]
[1731264342606,33.67647455,214.02,213.9,23.776884]
[1731264342607,33.67647455,214.08,214.01,33.67647455]
[1731264342809,33.67647455,214.07,214.0,33.67647455]
[1731264343724,33.67647455,214.04,213.97,33.67647455]
[1731264343926,33.67647455,214.01,213.94,33.67647455]
[1731264344111,33.67647455,213.99,213.92,33.67647455]
[1731264344912,0.12549,214.04,213.89,15.5706]
[1731264344913,33.67647455,213.98,213.91,33.67647455]
[1731264345327,33.67647455,213.98,213.89,15.5706]
[1731264345328,33.67647455,213.97,213.9,33.67647455]
[1731264345512,33.67647455,213.98,213.91,33.67647455]
[1731264345713,33.67647455,213.97,213.9,33.67647455]
[1731264345927,33.67647455,213.92,213.89,15.5706]
[1731264346126,33.67647455,213.94,213.89,15.5706]
[1731264346316,33.67647455,213.95,213.89,15.5706]
[1731264346711,33.67647455,213.94,213.87,33.67647455]
[1731264347517,33.67647455,213.93,213.86,33.67647455]
[1731264347721,33.67647455,213.93,213.83,21.9729]
[1731264347722,33.67647455,213.91,213.84,33.67647455]
[1731264347920,0.1,213.98,213.83,21.9729]
[1731264347921,33.67647455,213.89,213.83,21.9729]
[1731264348105,33.67647455,213.95,213.79,33.67647455]
[1731264348106,33.67647455,213.86,213.79,33.67647455]
[1731264348311,33.67647455,213.89,213.82,33.67647455]
[1731264348523,27.96,213.94,213.82,33.67647455]
[1731264348734,6.50742771,213.97,213.77,21.9729]
[1731264348735,27.96,213.96,213.77,21.9729]
[1731264348913,0.12549,213.95,213.77,21.9729]
[1731264349215,27.96,213.94,213.77,21.9729]
[1731264349531,43.876884,213.99,213.77,21.9729]
[1731264349708,33.67647455,213.91,213.84,33.67647455]
[1731264350418,33.67647455,213.92,213.84,33.67647455]
[1731264350724,27.96,213.98,213.78,23.776884]
[1731264350725,33.67647455,213.95,213.88,33.67647455]
[1731264351120,33.67647455,213.96,213.89,33.67647455]
[1731264351515,33.67647455,213.97,213.9,33.67647455]
[1731264351715,33.67647455,213.96,213.89,33.67647455]
[1731264351928,33.67647455,213.97,213.9,33.67647455]
[1731264352131,33.67647455,213.98,213.91,33.67647455]
[1731264352812,33.67647455,213.98,213.9,33.67647455]
[1731264353018,33.67647455,213.98,213.91,33.67647455]
[1731264353316,33.67647455,213.97,213.89,33.67647455]